bitfinex/quotes_BTCUSD_20250303
["timestamp","ask_amount","ask_price","bid_price","bid_amount"]
[1740991516778,0.162568,92269.0,92267.0,0.0001704]
[1740991516779,0.162569,92268.0,92267.0,0.0001704]
[1740991518035,0.19351842,92268.0,92267.0,0.0001704]
[1740991518377,0.162569,92268.0,92267.0,0.0001704]
[1740991518592,0.19353857,92268.0,92267.0,0.0001704]
[1740991519432,0.162569,92268.0,92267.0,0.0001704]
[1740991519980,0.0479,92294.0,92267.0,0.0001704]
[1740991520186,0.00188786,92293.0,92268.0,0.25452288]
[1740991520512,0.21858986,92293.0,92269.0,0.02550337]
[1740991520733,0.162566,92270.0,92269.0,0.02550337]
[1740991521343,0.05,92304.0,92268.0,0.25452288]
[1740991521678,0.00188786,92285.0,92268.0,0.25452288]
[1740991521878,0.162568,92269.0,92268.0,0.25452288]
[1740991523481,0.162564,92271.0,92268.0,0.25452288]
[1740991523712,0.0003408,92269.0,92268.0,0.25452288]
[1740991523917,0.1629088,92269.0,92268.0,0.29628405]
[1740991524686,0.1629088,92269.0,92268.0,0.25452288]
[1740991526055,0.162569,92268.0,92267.0,0.0001704]
[1740991526377,0.16445686,92268.0,92267.0,0.0001704]
[1740991527488,0.49544926,92268.0,92267.0,0.0001704]
[1740991527633,0.4935614,92268.0,92267.0,0.0001704]
[1740991528275,0.462569,92268.0,92267.0,0.0001704]
[1740991528550,0.49356357,92268.0,92267.0,0.0001704]
[1740991528978,0.462569,92268.0,92267.0,0.0001704]
[1740991529307,0.49356321,92268.0,92267.0,0.0001704]
[1740991529523,0.462569,92268.0,92267.0,0.0001704]
[1740991529653,0.49356708,92268.0,92267.0,0.0001704]
[1740991530048,0.19356708,92268.0,92267.0,0.0001704]
[1740991530256,0.19545494,92268.0,92267.0,0.0001704]
[1740991531730,0.16445686,92268.0,92267.0,0.0001704]
[1740991535922,0.16479766,92268.0,92267.0,0.0001704]
[1740991537197,0.49582323,92268.0,92267.0,0.0001704]
[1740991537402,0.57373537,92268.0,92267.0,0.0001704]
[1740991539898,0.68499445,92268.0,92267.0,0.0001704]
[1740991540101,0.62373537,92268.0,92267.0,0.0001704]
[1740991540302,0.62808537,92268.0,92267.0,0.0001704]
[1740991541426,0.57808537,92268.0,92267.0,0.0001704]
[1740991541639,0.57373537,92268.0,92267.0,0.0001704]
[1740991543469,0.49393537,92268.0,92267.0,0.0001704]
[1740991544095,0.49393537,92268.0,92242.0,0.077392]
[1740991544096,0.3,92267.0,92242.0,0.077392]
[1740991544353,0.3,92267.0,92251.0,0.00012043]
[1740991544354,0.00188786,92266.0,92251.0,0.00012043]
[1740991544583,0.216769,92264.0,92252.0,0.162596]
[1740991544830,0.03291343,92266.0,92251.0,0.00012043]
[1740991544831,0.00188786,92263.0,92251.0,0.00012043]
[1740991545008,0.21865986,92263.0,92251.0,0.16271943]
[1740991545306,0.21865986,92263.0,92251.0,0.00012043]
[1740991545307,0.162589,92258.0,92251.0,0.00012043]
[1740991545508,0.00188786,92257.0,92252.0,0.23680285]
[1740991545848,0.162585,92259.0,92252.0,0.162596]
[1740991546050,0.162587,92258.0,92252.0,0.162596]
[1740991546238,0.00188786,92260.0,92251.0,0.16271943]
[1740991546523,0.0003408,92268.0,92251.0,0.16271943]
[1740991546524,0.162598,92252.0,92251.0,0.00012043]
[1740991546833,0.16448586,92252.0,92251.0,0.00012043]
[1740991547651,0.16448586,92252.0,92251.0,0.00029083]
[1740991548070,0.3,92270.0,92251.0,0.00029083]
[1740991548269,0.3241,92288.0,92251.0,0.00029083]
[1740991548270,0.03291203,92267.0,92252.0,0.1246]
[1740991548498,0.00188786,92267.0,92254.0,0.216792]
[1740991548698,0.00188786,92267.0,92262.0,0.162579]
[1740991549052,0.16445986,92267.0,92262.0,0.162579]
[1740991549265,0.00188786,92267.0,92253.0,0.01248908]
[1740991549485,0.162585,92260.0,92254.0,0.20178428]
[1740991549688,0.00188786,92259.0,92254.0,0.03919028]
[1740991549898,0.162575,92265.0,92258.0,0.162587]
[1740991550118,0.2171018,92268.0,92254.0,0.03919028]
[1740991550119,0.00188786,92264.0,92260.0,0.162582]
[1740991550316,0.16479866,92268.0,92255.0,0.21679]
[1740991550550,0.16479866,92268.0,92256.0,0.02818768]
[1740991550756,0.00222866,92268.0,92261.0,0.162582]
[1740991551115,0.00222866,92268.0,92258.0,0.162586]
[1740991551116,0.162573,92266.0,92258.0,0.162586]
[1740991551320,0.00222866,92268.0,92256.0,0.02970518]
[1740991551321,0.0003408,92268.0,92256.0,0.02970518]
[1740991551559,0.0003408,92268.0,92267.0,0.162571]
[1740991551770,0.0003408,92268.0,92267.0,0.22391185]
[1740991551987,0.0003408,92268.0,92267.0,0.29931185]
[1740991553158,0.0003408,92268.0,92256.0,0.24497268]
[1740991553373,0.0003408,92268.0,92256.0,0.10630768]
[1740991553718,0.3003408,92268.0,92256.0,0.02818768]
[1740991553959,0.3003408,92268.0,92253.0,0.0468]
[1740991553960,0.0003408,92268.0,92258.0,0.07812]
[1740991554149,0.162585,92259.0,92258.0,0.07812]
[1740991555001,0.00188786,92260.0,92251.0,0.00029083]
[1740991555250,0.0003408,92268.0,92251.0,0.00029083]
[1740991555251,0.162598,92252.0,92251.0,0.00029083]
[1740991555694,0.16448586,92252.0,92251.0,0.00029083]
[1740991557039,0.17438806,92252.0,92251.0,0.00029083]
[1740991557249,0.18257777,92252.0,92251.0,0.00029083]
[1740991557680,0.48257777,92252.0,92251.0,0.00029083]
[1740991557913,0.51173402,92252.0,92251.0,0.00029083]
[1740991558774,0.48068991,92252.0,92251.0,0.00029083]
[1740991559409,0.0099022,92252.0,92251.0,0.00029083]
[1740991559611,0.216771,92263.0,92251.0,0.24100983]
[1740991559821,0.216776,92261.0,92252.0,0.04579873]
[1740991560002,0.3,92258.0,92252.0,0.04579873]
[1740991560155,0.162587,92258.0,92252.0,0.04579873]
[1740991560546,0.3,92260.0,92252.0,0.04579873]
[1740991560746,0.01009009,92263.0,92252.0,0.01454085]
[1740991560947,0.00844405,92268.0,92252.0,0.23133685]
[1740991561147,0.00188786,92267.0,92257.0,0.162587]
[1740991561358,0.162598,92252.0,92251.0,0.07841083]
[1740991562072,0.162598,92252.0,92251.0,0.00029083]
[1740991562491,0.462598,92252.0,92251.0,0.00029083]
[1740991564513,0.462598,92252.0,92251.0,0.00729083]
[1740991564514,0.463598,92252.0,92251.0,0.00729083]
[1740991565414,0.5140131,92252.0,92251.0,0.00729083]
[1740991565628,0.462606,92247.0,92246.0,0.0001705]
[1740991565855,0.61984507,92247.0,92246.0,0.00057144]
[1740991566058,0.66984507,92247.0,92246.0,0.00057144]
[1740991566682,0.540021,92239.0,92238.0,0.00017]
[1740991566889,0.99516007,92239.0,92238.0,1e-06]
[1740991567097,1.00329596,92239.0,92238.0,1e-06]
[1740991567506,1.06723681,92239.0,92238.0,1e-06]
[1740991568118,0.65269596,92239.0,92238.0,1e-06]
[1740991568366,0.70369596,92239.0,92238.0,1e-06]
[1740991568579,0.70269596,92239.0,92238.0,1e-06]
[1740991568986,1.00369596,92239.0,92238.0,1e-06]
[1740991569377,1.01823681,92239.0,92238.0,1e-06]
[1740991569833,0.3,92205.0,92195.0,0.216931]
[1740991570042,0.3,92214.0,92206.0,0.0001205]
[1740991570227,0.30188786,92213.0,92206.0,0.0001205]
[1740991570458,0.3,92211.0,92206.0,0.0001205]
[1740991570656,0.162677,92207.0,92206.0,0.0001205]
[1740991570858,0.16456486,92207.0,92206.0,0.0001205]
[1740991571012,0.16456486,92207.0,92193.0,0.295055]
[1740991571013,0.0008795,92205.0,92195.0,0.001]
[1740991571221,0.00188786,92204.0,92196.0,0.04308419]
[1740991571444,0.162695,92197.0,92196.0,0.04308419]
[1740991571651,0.00188786,92204.0,92193.0,0.07812]
[1740991571867,0.1627,92194.0,92193.0,0.07812]
[1740991573328,0.162716,92185.0,92181.0,0.25452288]
[1740991573536,0.162716,92185.0,92175.0,0.0488]
[1740991573657,0.16460386,92185.0,92175.0,0.0488]
[1740991574294,0.16460386,92185.0,92174.0,0.0001704]
[1740991574495,0.16460386,92185.0,92184.0,0.003]
[1740991574496,0.46560386,92185.0,92184.0,0.003]
[1740991574711,0.463716,92185.0,92184.0,0.003]
[1740991575330,0.462716,92185.0,92184.0,0.002]
[1740991575713,0.463716,92185.0,92184.0,0.003]
[1740991577471,0.462716,92185.0,92184.0,0.002]
[1740991577710,0.462716,92185.0,92184.0,0.003]
[1740991578629,0.56911224,92185.0,92184.0,0.002]
[1740991578867,0.512716,92185.0,92184.0,0.002]
[1740991579347,0.462716,92185.0,92184.0,0.002]
[1740991579807,0.462716,92185.0,92174.0,0.0001704]
[1740991579808,0.462733,92175.0,92174.0,0.0001704]
[1740991580498,0.3,92175.0,92174.0,0.0001704]
[1740991580775,0.462733,92175.0,92174.0,0.0001704]
[1740991582417,0.540133,92175.0,92174.0,0.0001704]
[1740991582650,0.540173,92175.0,92174.0,0.0001704]
[1740991583529,0.462773,92175.0,92174.0,0.0001704]
[1740991584492,0.512773,92175.0,92174.0,0.0001704]
[1740991584930,0.462773,92175.0,92174.0,0.0001704]
[1740991585177,0.512773,92175.0,92174.0,0.0001704]
[1740991585413,0.462762,92159.0,92158.0,0.0001704]
[1740991585643,0.512762,92159.0,92158.0,0.0001704]
[1740991585862,0.512762,92159.0,92158.0,0.00027928]
[1740991586344,0.594362,92159.0,92158.0,0.00027928]
[1740991586845,0.60260144,92159.0,92158.0,0.00027928]
[1740991587159,1.11377788,92159.0,92158.0,2.8e-07]
[1740991587387,1.11377788,92159.0,92108.0,0.1278]
[1740991587388,0.462788,92144.0,92110.0,0.162848]
[1740991587644,0.512788,92144.0,92143.0,0.0004714]
[1740991589048,0.462788,92144.0,92143.0,0.0004714]
[1740991589282,0.47291007,92144.0,92143.0,0.0004714]
[1740991589734,0.3,92143.0,92138.0,0.0014714]
[1740991589941,0.00188786,92142.0,92138.0,0.0014714]
[1740991590160,0.162794,92141.0,92139.0,0.03813544]
[1740991590377,0.162796,92140.0,92138.0,0.0014714]
[1740991590608,0.46468486,92139.0,92138.0,0.0014714]
[1740991590857,0.462797,92139.0,92138.0,0.0014714]
[1740991593715,0.462837,92139.0,92138.0,0.0014714]
[1740991593947,0.462837,92139.0,92122.0,0.002]
[1740991593948,0.462825,92123.0,92122.0,0.002]
[1740991594566,0.512825,92123.0,92122.0,0.002]
[1740991594980,0.462825,92123.0,92122.0,0.002]
[1740991595219,0.47108931,92123.0,92122.0,0.002]
[1740991597625,0.47112931,92123.0,92122.0,0.002]
[1740991598658,0.52112931,92123.0,92122.0,1e-06]
[1740991598863,0.53567016,92123.0,92122.0,1e-06]
[1740991599834,0.53567016,92123.0,92091.0,0.0025705]
[1740991599835,0.3,92094.0,92085.0,0.162891]
[1740991599897,0.3,92094.0,92084.0,0.217191]
[1740991600096,0.00188786,92093.0,92081.0,0.0001705]
[1740991600342,0.3,92094.0,92081.0,0.0001705]
[1740991600507,0.07816,92122.0,92081.0,0.0001705]
[1740991600682,0.00188786,92121.0,92106.0,0.0498]
[1740991601057,0.00188786,92121.0,92107.0,0.0346347]
[1740991601258,0.00188786,92121.0,92106.0,0.0498]
[1740991601259,0.462854,92107.0,92106.0,0.00012052]
[1740991601612,0.3,92107.0,92106.0,0.00012052]
[1740991602025,0.3,92107.0,92106.0,0.16297552]
[1740991603010,0.00830431,92123.0,92106.0,0.00012052]
[1740991603236,0.00188786,92122.0,92106.0,0.00012052]
[1740991603442,0.162837,92117.0,92108.0,0.162852]
[1740991603684,0.30188786,92116.0,92107.0,0.00782805]
[1740991603915,0.30188786,92116.0,92106.0,0.00012052]
[1740991603916,0.162854,92107.0,92106.0,0.00012052]
[1740991604148,0.16474186,92107.0,92106.0,0.00012052]
[1740991604356,0.46474186,92107.0,92106.0,0.00012052]
[1740991604570,0.462854,92107.0,92106.0,0.00012052]
[1740991615651,0.463854,92107.0,92106.0,0.00012052]
[1740991618134,0.543554,92107.0,92106.0,0.00012052]
[1740991619573,0.57459457,92107.0,92106.0,0.00012052]
[1740991619838,0.57459457,92107.0,92072.0,0.0467]
[1740991619839,0.16291,92075.0,92074.0,0.22572659]
[1740991620100,0.162912,92074.0,92063.0,0.07816]
[1740991620357,0.46479986,92074.0,92060.0,0.0493]
[1740991620626,0.462912,92074.0,92073.0,0.01407876]
[1740991620859,0.445612,92074.0,92073.0,0.01407876]
[1740991621098,0.45395713,92074.0,92073.0,0.01407876]
[1740991622341,0.47125713,92074.0,92073.0,0.01407876]
[1740991622579,0.3,92074.0,92073.0,0.17699276]
[1740991622802,0.06028678,92081.0,92074.0,0.217216]
[1740991623089,0.06028678,92081.0,92073.0,0.05350094]
[1740991623090,0.06028678,92081.0,92076.0,0.01454085]
[1740991623319,0.06028678,92081.0,92080.0,0.01454085]
[1740991623570,0.1629,92081.0,92080.0,0.01454085]
[1740991623825,0.4629,92081.0,92080.0,0.01454085]
[1740991624091,0.00829187,92086.0,92081.0,0.01454085]
[1740991624321,0.00830005,92088.0,92080.0,0.02543462]
[1740991624533,0.162905,92079.0,92074.0,0.22572659]
[1740991624751,0.162899,92082.0,92074.0,0.22572659]
[1740991624960,0.162878,92093.0,92089.0,0.01454085]
[1740991625178,0.162881,92092.0,92086.0,0.01454085]
[1740991625415,0.30188786,92098.0,92088.0,0.01454085]
[1740991625643,0.3,92090.0,92088.0,0.01454085]
[1740991625852,0.00825591,92100.0,92097.0,0.162871]
[1740991626058,0.00825591,92100.0,92078.0,0.22572659]
[1740991626059,0.00825591,92100.0,92094.0,0.162876]
[1740991626269,0.001,92107.0,92095.0,0.0162876]
[1740991626476,0.162883,92091.0,92084.0,0.162894]
[1740991626712,0.217148,92103.0,92079.0,0.22572659]
[1740991626713,0.162895,92084.0,92079.0,0.22572659]
[1740991626949,0.001,92107.0,92066.0,0.07872]
[1740991626950,0.162912,92074.0,92066.0,0.22572659]
[1740991627150,0.162912,92074.0,92061.0,0.08008]
[1740991627360,0.46479986,92074.0,92061.0,0.08008]
[1740991627570,0.462912,92074.0,92061.0,0.08008]
[1740991628008,0.47319213,92074.0,92061.0,0.08008]
[1740991628683,0.47319213,92074.0,92050.0,6.069e-05]
[1740991628907,0.47319213,92074.0,92050.0,0.16301469]
[1740991629138,0.47319213,92074.0,92050.0,6.069e-05]
[1740991630759,0.47319213,92074.0,92052.0,0.01454085]
[1740991630964,0.47319213,92074.0,92050.0,6.069e-05]
[1740991631392,0.47319213,92074.0,92073.0,7.6e-07]
[1740991631597,0.462935,92061.0,92050.0,6.069e-05]
[1740991634691,0.162951,92052.0,92050.0,6.069e-05]
[1740991634899,0.46483886,92052.0,92051.0,0.00046113]
[1740991635101,0.462951,92052.0,92051.0,0.00046113]
[1740991639737,0.462961,92046.0,92045.0,0.00069242]
[1740991646666,0.5527123,92046.0,92045.0,0.00069242]
[1740991646896,0.462961,92046.0,92045.0,0.00069242]
[1740991648290,0.462961,92046.0,92029.0,0.0021706]
[1740991648291,0.46299,92030.0,92029.0,0.0021706]
[1740991648523,0.46299,92030.0,92029.0,0.00229071]
[1740991649214,0.463009,92019.0,92018.0,7e-05]
[1740991649885,0.463009,92019.0,91982.0,0.0826]
[1740991649886,0.463041,92001.0,92000.0,0.4908112]
[1740991651355,0.463041,92001.0,92000.0,0.49121382]
[1740991652269,0.06023145,92007.0,92000.0,0.45849891]
[1740991652477,0.16304,92002.0,92000.0,0.45849891]
[1740991652680,0.00188786,92001.0,92000.0,0.45849891]
[1740991653096,0.3,92001.0,92000.0,0.5045488]
[1740991653377,0.3,92001.0,92000.0,0.45849891]
[1740991653989,0.463041,92001.0,92000.0,0.45849891]
[1740991654833,0.00801269,92030.0,92000.0,0.43149891]
[1740991654834,0.00827113,92002.0,92000.0,0.43149891]
[1740991655045,0.163041,92001.0,92000.0,0.43149891]
[1740991655265,0.163041,92001.0,92000.0,0.4748488]
[1740991656637,0.163041,92001.0,92000.0,0.43166941]
[1740991658439,0.16492886,92001.0,92000.0,0.43166941]
[1740991658662,0.3,92002.0,92000.0,0.43166941]
[1740991659340,0.00821225,92015.0,92000.0,0.43166941]
[1740991659341,0.00821225,92015.0,92001.0,0.01454085]
[1740991659559,0.000341,92019.0,92010.0,0.163024]
[1740991659770,0.00222886,92019.0,92011.0,0.03084325]
[1740991660238,0.000341,92019.0,92013.0,0.163018]
[1740991660459,0.163027,92009.0,92008.0,0.01454085]
[1740991660680,0.16302,92013.0,92007.0,0.01454085]
[1740991660908,0.163021,92013.0,92007.0,0.01454085]
[1740991661212,0.00188786,92012.0,92002.0,0.163039]
[1740991661466,0.30188786,92014.0,92005.0,0.01454085]
[1740991661697,0.30188786,92014.0,92000.0,0.657396]
[1740991661698,0.3,92014.0,92000.0,0.657396]
[1740991661929,0.163039,92002.0,92000.0,0.657396]
[1740991662161,0.02197062,92013.0,92000.0,0.657396]
[1740991662162,0.217362,92012.0,92000.0,0.657396]
[1740991662412,0.00188786,92011.0,92004.0,0.163036]
[1740991662659,0.3,92010.0,92001.0,0.217388]
[1740991662902,0.163041,92001.0,92000.0,0.43166941]
[1740991663129,0.463041,92001.0,92000.0,0.43166941]
[1740991664010,0.48312376,92001.0,92000.0,0.43166941]
[1740991665115,0.51525779,92001.0,92000.0,0.38258544]
[1740991665406,0.51525779,92001.0,92000.0,0.42104398]
[1740991665880,0.35221679,92001.0,92000.0,0.42104398]
[1740991666615,0.35221679,92001.0,92000.0,0.59862783]
[1740991666616,0.05221679,92001.0,92000.0,0.59862783]
[1740991666840,0.00832783,92014.0,92011.0,0.163023]
[1740991667092,0.3,92015.0,92012.0,0.0163023]
[1740991667351,0.000341,92019.0,92001.0,0.01454085]
[1740991667582,0.00834558,92019.0,92018.0,0.163011]
[1740991667837,0.000341,92019.0,92009.0,0.0815]
[1740991668075,0.3,92017.0,92009.0,0.0815]
[1740991668272,0.463013,92017.0,92010.0,0.19306505]
[1740991668526,0.3,92017.0,92010.0,0.03004005]
[1740991668795,0.3,92017.0,92009.0,0.0815]
[1740991669004,0.000341,92019.0,92009.0,0.0815]
[1740991669217,0.3,92014.0,92009.0,0.244527]
[1740991669437,0.163022,92012.0,92009.0,0.0815]
[1740991669655,0.3,92011.0,92001.0,0.217388]
[1740991669860,0.3,92011.0,92008.0,0.163028]
[1740991670081,0.3,92011.0,92002.0,0.0414085]
[1740991670288,0.00188786,92010.0,92000.0,0.38258544]
[1740991670500,0.217351,92017.0,92000.0,0.36288544]
[1740991670714,0.463015,92016.0,92008.0,0.163029]
[1740991670921,0.163027,92009.0,92000.0,0.36288544]
[1740991671132,0.00832922,92019.0,92000.0,0.36288544]
[1740991671133,0.30188786,92018.0,92001.0,0.0590612]
[1740991671347,0.00832922,92019.0,92000.0,0.36288544]
[1740991671348,0.463041,92001.0,92000.0,0.36288544]
[1740991672199,0.32009423,92001.0,92000.0,0.36288544]
[1740991672410,0.32009423,92001.0,92000.0,0.56241698]
[1740991672867,0.3,92001.0,92000.0,0.56241698]
[1740991673504,0.463041,92001.0,92000.0,0.36288544]
[1740991676339,0.3,92001.0,92000.0,0.36288544]
[1740991676606,0.463041,92001.0,92000.0,0.36288544]
[1740991678531,0.48317722,92001.0,92000.0,0.36288544]
[1740991679376,0.32013622,92001.0,92000.0,0.52592844]
[1740991679841,0.32013622,92001.0,92000.0,0.36288544]
[1740991680109,0.48317722,92001.0,92000.0,0.36288544]
[1740991680353,0.48351822,92001.0,92000.0,0.36288544]
[1740991681272,0.463382,92001.0,92000.0,0.36288544]
[1740991681509,0.49440918,92001.0,92000.0,0.36288544]
[1740991681975,0.49440918,92001.0,92000.0,0.33016781]
[1740991682204,0.49440918,92001.0,91998.0,0.002]
[1740991682205,0.3,92000.0,91998.0,8.1e-07]
[1740991682448,0.46493286,91999.0,91998.0,8.1e-07]
[1740991682718,0.463093,91972.0,91971.0,0.0004]
[1740991683184,0.463093,91972.0,91971.0,0.00052056]
[1740991683921,0.4631,91968.0,91967.0,0.00125534]
[1740991684166,0.463126,91953.0,91927.0,0.03541608]
[1740991684403,0.217493,91957.0,91927.0,0.03541608]
[1740991684404,0.463171,91928.0,91927.0,0.03541608]
[1740991684860,0.463171,91928.0,91927.0,0.00849926]
[1740991685723,0.213181,91922.0,91921.0,0.06965193]
[1740991685938,0.163188,91918.0,91917.0,0.09156301]
[1740991686155,0.00188786,91918.0,91917.0,0.10842937]
[1740991686362,0.00188786,91926.0,91917.0,0.10854983]
[1740991686577,0.02003382,91922.0,91917.0,0.10854983]
[1740991686801,0.02003382,91922.0,91920.0,0.163183]
[1740991687016,0.02003382,91922.0,91921.0,0.00152295]
[1740991687236,0.02003382,91922.0,91921.0,0.05679413]
[1740991687480,0.02003382,91922.0,91917.0,0.09168347]
[1740991687481,0.463188,91918.0,91917.0,0.09168347]
[1740991688348,0.463188,91918.0,91917.0,0.00012046]
[1740991688921,0.48322182,91918.0,91917.0,0.00012046]
[1740991689775,0.48322182,91918.0,91908.0,0.0001704]
[1740991689776,0.463194,91915.0,91914.0,0.05022101]
[1740991690366,0.48322782,91915.0,91914.0,0.05022101]
[1740991690988,0.48322782,91915.0,91914.0,0.01746993]
[1740991693336,0.463219,91901.0,91900.0,0.04565801]
[1740991693543,0.463219,91901.0,91900.0,0.01290693]
[1740991693963,0.463219,91901.0,91891.0,0.0004]
[1740991693964,0.463235,91892.0,91891.0,0.0004]
[1740991694184,0.3,91887.0,91886.0,0.06337065]
[1740991694617,0.3,91887.0,91886.0,0.03060607]
[1740991694867,0.3,91874.0,91873.0,0.06394965]
[1740991695369,0.07376048,91901.0,91886.0,0.21766]
[1740991695595,0.00011964,91874.0,91873.0,0.22721765]
[1740991695824,0.00011964,91874.0,91873.0,0.06394965]
[1740991696044,0.16338664,91874.0,91873.0,0.06394965]
[1740991696912,0.17168917,91874.0,91873.0,0.06394965]
[1740991697147,0.22359166,91874.0,91873.0,0.06394965]
[1740991698010,0.21528913,91874.0,91873.0,0.06394965]
[1740991698436,0.22894178,91874.0,91873.0,0.06394965]
[1740991698872,0.06567478,91874.0,91873.0,0.0784905]
[1740991699383,0.06567478,91874.0,91873.0,0.1261905]
[1740991699812,0.06567478,91874.0,91873.0,0.35344078]
[1740991700022,0.06567478,91874.0,91873.0,0.35191709]
[1740991701083,0.00188786,91905.0,91875.0,0.05]
[1740991701292,0.03173111,91906.0,91905.0,0.01454085]
[1740991701500,0.03185186,91906.0,91905.0,0.01454085]
[1740991701737,0.03185186,91906.0,91905.0,0.03231623]
[1740991702181,0.00012075,91906.0,91905.0,0.03231623]
[1740991702377,0.00012075,91906.0,91905.0,0.03383932]
[1740991702594,0.00012075,91906.0,91905.0,0.03231623]
[1740991702812,0.00012075,91906.0,91905.0,0.11343921]
[1740991703077,0.00012075,91906.0,91905.0,0.11191623]
[1740991703288,0.00012075,91906.0,91905.0,0.19552823]
[1740991703907,0.00012075,91906.0,91905.0,0.01454085]
[1740991704109,0.00012075,91906.0,91890.0,0.163237]
[1740991704372,0.00012075,91906.0,91884.0,0.0812]
[1740991704589,0.00012075,91906.0,91873.0,0.06412035]
[1740991705061,0.00200861,91906.0,91873.0,0.04564395]
[1740991705269,0.163237,91891.0,91874.0,0.217689]
[1740991705475,0.3,91890.0,91877.0,0.21768]
[1740991705680,0.00200861,91906.0,91873.0,0.04564395]
[1740991705681,0.3,91886.0,91873.0,0.04564395]
[1740991705889,0.3,91886.0,91877.0,0.17780185]
[1740991706101,0.3,91886.0,91879.0,0.01454085]
[1740991706313,0.3,91886.0,91882.0,0.01454085]
[1740991706720,0.3,91886.0,91873.0,0.04564395]
[1740991706721,0.3,91886.0,91885.0,0.01454085]
[1740991707181,0.3,91893.0,91882.0,0.01454085]
[1740991707394,0.3,91893.0,91883.0,0.03776214]
[1740991707599,0.3,91893.0,91873.0,0.04564395]
[1740991707600,0.163267,91874.0,91873.0,0.04564395]
[1740991707805,0.463267,91874.0,91873.0,0.04564395]
[1740991708013,0.3,91874.0,91873.0,0.04564395]
[1740991708865,0.00825249,91894.0,91877.0,0.21768]
[1740991709072,0.00825249,91894.0,91879.0,0.01454085]
[1740991709280,0.00825249,91894.0,91881.0,0.01454085]
[1740991709512,0.00825249,91894.0,91873.0,0.04604645]
[1740991709713,0.00190442,91909.0,91873.0,0.04604645]
[1740991709921,0.3,91903.0,91880.0,0.01454085]
[1740991710130,0.00190447,91902.0,91874.0,0.01454085]
[1740991710255,0.00190442,91909.0,91876.0,0.01454085]
[1740991710471,0.3,91907.0,91876.0,0.01454085]
[1740991710676,0.16323,91895.0,91886.0,0.163245]
[1740991710886,0.217635,91897.0,91886.0,0.163245]
[1740991711206,0.00150704,91897.0,91887.0,0.01504297]
[1740991711630,0.217621,91903.0,91887.0,0.01504297]
[1740991711831,0.163221,91900.0,91880.0,0.36192684]
[1740991712041,0.163233,91893.0,91875.0,0.01454085]
[1740991712246,0.03275,91917.0,91875.0,0.01454085]
[1740991712247,0.3,91908.0,91875.0,0.01454085]
[1740991712446,0.00190436,91907.0,91870.0,0.41022684]
[1740991712648,0.00190429,91907.0,91877.0,0.01454085]
[1740991712822,0.163256,91880.0,91872.0,0.16327]
[1740991713021,0.21952254,91904.0,91876.0,0.01454085]
[1740991713387,0.3,91902.0,91876.0,0.22572659]
[1740991713589,0.163244,91887.0,91877.0,0.01454085]
[1740991713725,0.00190446,91899.0,91880.0,0.01454085]
[1740991713927,0.00190442,91914.0,91878.0,0.01454085]
[1740991714130,0.00190442,91914.0,91876.0,0.22572659]
[1740991714333,0.217599,91912.0,91885.0,0.01454085]
[1740991714623,0.250328,91920.0,91881.0,0.01454085]
[1740991714624,0.00190422,91911.0,91881.0,0.01454085]
[1740991714804,0.217641,91895.0,91882.0,0.02402674]
[1740991715003,0.163237,91891.0,91885.0,0.01454085]
[1740991715205,0.217585,91918.0,91891.0,0.163236]
[1740991715206,0.163224,91898.0,91891.0,0.163236]
[1740991715394,0.463226,91897.0,91883.0,0.01454085]
[1740991715593,0.3,91897.0,91883.0,0.01454085]
[1740991715792,0.163232,91894.0,91887.0,0.01454085]
[1740991715997,0.163228,91896.0,91887.0,0.23219785]
[1740991716296,0.463226,91897.0,91890.0,0.163237]
[1740991716503,0.3,91898.0,91885.0,0.01454085]
[1740991716709,0.00190441,91897.0,91889.0,0.217653]
[1740991716944,0.163229,91896.0,91885.0,0.01454085]
[1740991717143,0.217637,91896.0,91887.0,0.163242]
[1740991717349,0.163231,91895.0,91888.0,0.163242]
[1740991717554,0.3,91896.0,91891.0,0.163235]
[1740991717749,0.3,91896.0,91887.0,0.03021544]
[1740991718020,0.374734,91923.0,91885.0,0.01454085]
[1740991718367,0.163219,91901.0,91892.0,0.217646]
[1740991718582,0.163223,91899.0,91885.0,0.01454085]
[1740991718786,0.00190424,91910.0,91892.0,0.01454085]
[1740991718990,0.163225,91898.0,91890.0,0.01454085]
[1740991719176,0.163225,91898.0,91889.0,0.217651]
[1740991719480,0.163225,91898.0,91891.0,0.163236]
[1740991719686,0.3,91908.0,91890.0,0.02432759]
[1740991719898,0.163229,91896.0,91890.0,0.18756459]
[1740991720124,0.3,91912.0,91897.0,0.163224]
[1740991720334,0.3,91903.0,91898.0,0.163223]
[1740991720542,0.3,91903.0,91890.0,0.02432759]
[1740991720543,0.3,91903.0,91899.0,0.0380861]
[1740991720751,0.163226,91897.0,91891.0,0.163236]
[1740991720946,0.3,91903.0,91890.0,0.02432759]
[1740991721159,0.163236,91891.0,91890.0,0.02432759]
[1740991721327,0.163233,91893.0,91886.0,0.163244]
[1740991721541,0.163231,91894.0,91888.0,0.163241]
[1740991721715,0.00190436,91900.0,91875.0,0.01454085]
[1740991721917,0.3,91906.0,91877.0,0.01454085]
[1740991722148,0.1635424,91911.0,91905.0,0.163211]
[1740991722354,0.1635424,91911.0,91880.0,0.36192684]
[1740991722355,0.0003414,91911.0,91881.0,0.28716744]
[1740991722579,0.0003414,91911.0,91902.0,0.163216]
[1740991722580,0.3,91910.0,91902.0,0.163216]
[1740991722793,0.3,91908.0,91885.0,0.01454085]
[1740991723129,0.3,91908.0,91889.0,0.16324]
[1740991723307,0.163222,91900.0,91886.0,0.04623565]
[1740991723512,0.00190414,91907.0,91887.0,0.01454085]
[1740991723665,0.163221,91900.0,91887.0,0.01454085]
[1740991723870,0.163224,91899.0,91887.0,0.23219785]
[1740991724244,0.00190424,91898.0,91884.0,0.22572659]
[1740991724452,0.163239,91890.0,91884.0,0.38897459]
[1740991724681,0.00012075,91908.0,91884.0,0.22572659]
[1740991724894,0.00012075,91908.0,91874.0,0.22572659]
[1740991724895,0.3,91905.0,91874.0,0.22572659]
[1740991725113,0.163267,91874.0,91873.0,0.04564395]
[1740991726622,0.163267,91874.0,91873.0,0.04604645]
[1740991726832,0.463267,91874.0,91873.0,0.04604645]
[1740991727045,0.47132687,91874.0,91873.0,0.04604645]
[1740991728132,0.30805987,91874.0,91873.0,0.04604645]
[1740991728334,0.47132687,91874.0,91873.0,0.04604645]